bitfinex-derivatives/quotes_BTCF0:USTF0_20250823
["timestamp","ask_amount","ask_price","bid_price","bid_amount"]
[1755926249898,0.80192,115950.0,115940.0,1.40972012]
[1755926250097,0.81933,115950.0,115940.0,1.06960581]
[1755926250298,0.81933,115950.0,115940.0,1.40972012]
[1755926250497,0.9056136,115950.0,115940.0,1.40972012]
[1755926250700,0.9257736,115950.0,115940.0,1.06960581]
[1755926250899,0.9257736,115950.0,115940.0,0.914924]
[1755926253301,0.9257736,115950.0,115940.0,1.25503831]
[1755926253502,0.9257736,115950.0,115940.0,0.914924]
[1755926256301,0.9257736,115950.0,115940.0,1.25503831]
[1755926257298,0.9056136,115950.0,115940.0,1.25503831]
[1755926257802,0.81933,115950.0,115940.0,1.25503831]
[1755926261200,0.01941,115950.0,115940.0,1.25503831]
[1755926261706,0.1056937,115950.0,115940.0,1.25503831]
[1755926262302,0.01941,115950.0,115940.0,1.25503831]
[1755926262605,0.01941,115950.0,115940.0,1.36334102]
[1755926263203,0.01941,115950.0,115940.0,2.16110102]
[1755926263807,0.002,115950.0,115940.0,2.16110102]
[1755926266012,0.002,115950.0,115940.0,2.87190102]
[1755926266203,0.002,115950.0,115940.0,2.76359831]
[1755926266397,0.3608,115970.0,115960.0,0.0862762]
[1755926266596,0.3608,115970.0,115960.0,0.63540806]
[1755926266808,0.3608,115970.0,115960.0,0.55806134]
[1755926267004,0.37821,115970.0,115960.0,1.09270885]
[1755926267507,0.37821,115970.0,115960.0,0.75259454]
[1755926267708,0.42052641,115970.0,115960.0,0.75259454]
[1755926268108,0.42352641,115970.0,115960.0,0.64430912]
[1755926268313,0.50979531,115970.0,115960.0,1.05803292]
[1755926268610,0.50979531,115970.0,115960.0,1.04430922]
[1755926269404,0.50979531,115970.0,115960.0,1.15259464]
[1755926271312,0.50979531,115970.0,115960.0,1.04430922]
[1755926271712,0.50979531,115970.0,115960.0,1.15259464]
[1755926272816,0.42352641,115970.0,115960.0,1.15259464]
[1755926274516,0.06272641,115970.0,115960.0,1.15259464]
[1755926274714,0.06272641,115970.0,115960.0,1.49270895]
[1755926275020,0.06272641,115970.0,115960.0,1.59270895]
[1755926275516,1.2443454,115980.0,115970.0,0.0862688]
[1755926275719,1.2443454,115980.0,115970.0,0.55243311]
[1755926275920,1.2443454,115980.0,115970.0,0.2123188]
[1755926276222,1.2443454,115980.0,115970.0,0.29855171]
[1755926276618,1.28773535,115980.0,115970.0,0.29855171]
[1755926277121,1.28773535,115980.0,115970.0,0.79855171]
[1755926277321,1.30736535,115980.0,115970.0,0.79855171]
[1755926280225,1.30736535,115980.0,115970.0,0.71228291]
[1755926282323,1.30736535,115980.0,115970.0,0.82048224]
[1755926283924,1.30736535,115980.0,115970.0,0.71228291]
[1755926284225,1.30736535,115980.0,115970.0,0.82047592]
[1755926285626,1.30736535,115980.0,115970.0,0.71228291]
[1755926288328,1.71536796,115980.0,115970.0,1.12028552]
[1755926288520,1.30736535,115980.0,115970.0,1.31475771]
[1755926288721,1.71536796,115980.0,115970.0,1.31475771]
[1755926288917,1.71536796,115980.0,115970.0,1.20655432]
[1755926289121,1.71536796,115980.0,115970.0,1.12028552]
[1755926290024,1.71536796,115980.0,115970.0,0.71228291]
[1755926290227,1.71536796,115980.0,115970.0,1.06887552]
[1755926290728,1.71536796,115980.0,115970.0,1.11755552]
[1755926292132,1.71536796,115980.0,115970.0,0.67560291]
[1755926292321,1.89826433,115980.0,115970.0,0.58623291]
[1755926292521,1.89826433,115980.0,115970.0,0.17312499]
[1755926292720,0.0862688,115970.0,115960.0,0.12189136]
[1755926292921,0.78716778,115970.0,115960.0,0.04460271]
[1755926293323,0.4470688,115970.0,115960.0,0.04460271]
[1755926293730,0.78716778,115970.0,115960.0,0.04460271]
[1755926293925,0.78716778,115970.0,115960.0,0.06783271]
[1755926294527,0.78716778,115970.0,115960.0,0.04460271]
[1755926295931,1.03716778,115970.0,115960.0,0.04460271]
[1755926297533,1.03716778,115970.0,115960.0,0.06783271]
[1755926298433,1.03716778,115970.0,115960.0,0.07850271]
[1755926298634,1.03716778,115970.0,115960.0,0.11245271]
[1755926298933,0.6970688,115970.0,115960.0,0.11245271]
[1755926299124,0.6970688,115970.0,115960.0,0.09565271]
[1755926299125,0.78716778,115970.0,115960.0,0.09565271]
[1755926299330,1.2471088,115970.0,115960.0,0.14433271]
[1755926299528,1.2471088,115970.0,115960.0,0.22162136]
[1755926305140,1.2497888,115970.0,115960.0,0.22162136]
[1755926307936,0.4497488,115970.0,115960.0,0.22162136]
[1755926308141,1.2534388,115970.0,115960.0,0.22162136]
[1755926309437,1.2534388,115970.0,115960.0,0.14433271]
[1755926312545,1.2534388,115970.0,115960.0,0.22162136]
[1755926314148,1.59353778,115970.0,115960.0,0.22162136]
[1755926314346,1.66157841,115970.0,115960.0,0.22162136]
[1755926316245,1.2534388,115970.0,115960.0,0.14433271]
[1755926316544,1.66157841,115970.0,115960.0,0.14433271]
[1755926317745,0.86217841,115970.0,115960.0,0.11038271]
[1755926317951,1.65837841,115970.0,115960.0,0.22121407]
[1755926318452,1.66098841,115970.0,115960.0,0.22121407]
[1755926321348,1.2528488,115970.0,115960.0,0.14384271]
[1755926321548,1.66098841,115970.0,115960.0,0.14384271]
[1755926322041,1.2528488,115970.0,115960.0,0.14384271]
[1755926322246,1.66098841,115970.0,115960.0,0.14384271]
[1755926324960,2.02178841,115970.0,115960.0,0.14384271]
[1755926325164,2.02178841,115970.0,115960.0,0.2520461]
[1755926325660,1.6136488,115970.0,115960.0,0.2520461]
[1755926325860,2.02178841,115970.0,115960.0,0.2520461]
[1755926326362,1.6136488,115970.0,115960.0,0.2520461]
[1755926326550,1.6103588,115970.0,115960.0,0.99641862]
[1755926326755,1.2454288,115970.0,115960.0,0.96574844]
[1755926327054,1.2454288,115970.0,115960.0,0.99641862]
[1755926327256,1.2454288,115970.0,115960.0,1.49641862]
[1755926327455,0.8888088,115970.0,115960.0,1.49641862]
[1755926327655,1.2496088,115970.0,115960.0,1.49641862]
[1755926329866,1.2496088,115970.0,115960.0,1.08827901]
[1755926330163,1.2496088,115970.0,115960.0,1.49641862]
[1755926330463,1.65774841,115970.0,115960.0,1.49641862]
[1755926331065,1.54124558,115970.0,115960.0,1.49641862]
[1755926331265,1.62751438,115970.0,115960.0,1.38821523]
[1755926331854,1.21937477,115970.0,115960.0,1.38821523]
[1755926332053,1.62751438,115970.0,115960.0,1.49664765]
[1755926333269,1.21937477,115970.0,115960.0,1.49664765]
[1755926333469,1.62751438,115970.0,115960.0,1.49664765]
[1755926333761,1.21937477,115970.0,115960.0,1.49664765]
[1755926334065,1.62751438,115970.0,115960.0,1.49664765]
[1755926335165,1.62751438,115970.0,115960.0,1.38821523]
[1755926335958,1.62751438,115970.0,115960.0,1.49662264]
[1755926336368,1.62751438,115970.0,115960.0,1.38821523]
[1755926337666,1.62751438,115970.0,115960.0,0.98007562]
[1755926337868,1.62751438,115970.0,115960.0,1.38821523]
[1755926338067,1.62751438,115970.0,115960.0,0.98007562]
[1755926338370,1.62751438,115970.0,115960.0,1.38821523]
[1755926338969,1.62751438,115970.0,115960.0,1.13821523]
[1755926341170,1.62751438,115970.0,115960.0,0.73007562]
[1755926341372,1.21937477,115970.0,115960.0,1.13821523]
[1755926342267,1.62751438,115970.0,115960.0,1.13821523]
[1755926342463,1.62751438,115970.0,115960.0,0.73007562]
[1755926342672,1.62751438,115970.0,115960.0,1.13821523]
[1755926345170,1.21937477,115970.0,115960.0,1.13821523]
[1755926345375,1.62751438,115970.0,115960.0,1.13821523]
[1755926345578,1.62751438,115970.0,115960.0,0.73007562]
[1755926345774,1.62751438,115970.0,115960.0,1.13821523]
[1755926346582,1.62751438,115970.0,115960.0,1.22449143]
[1755926346980,1.62751438,115970.0,115960.0,1.13821523]
[1755926347288,1.62751438,115970.0,115960.0,1.24657807]
[1755926347984,1.62751438,115970.0,115960.0,1.13821523]
[1755926348879,1.62751438,115970.0,115960.0,0.73007562]
[1755926349268,1.62751438,115970.0,115960.0,1.13821523]
[1755926350083,1.62751438,115970.0,115960.0,0.83845002]
[1755926350384,1.62751438,115970.0,115960.0,1.24658963]
[1755926350581,1.62751438,115970.0,115960.0,0.69661562]
[1755926350769,1.62751438,115970.0,115960.0,0.68188562]
[1755926350974,1.62751438,115970.0,115960.0,0.79027084]
[1755926351481,1.62751438,115970.0,115960.0,0.82309084]
[1755926351683,1.62751438,115970.0,115960.0,0.84001084]
[1755926351976,1.62751438,115970.0,115960.0,1.24815045]
[1755926352182,1.62751438,115970.0,115960.0,1.13976523]
[1755926352586,0.82915438,115970.0,115960.0,1.13976523]
[1755926352774,1.62687438,115970.0,115960.0,1.13976523]
[1755926354185,1.62687438,115970.0,115960.0,0.73162562]
[1755926356775,1.62687438,115970.0,115960.0,0.69880562]
[1755926356977,1.62687438,115970.0,115960.0,0.68188562]
[1755926358787,1.62687438,115970.0,115960.0,0.71470562]
[1755926358982,1.62687438,115970.0,115960.0,0.59565271]
[1755926359380,1.62687438,115970.0,115960.0,0.62847271]
[1755926359578,1.62687438,115970.0,115960.0,0.64539271]
[1755926359776,1.21873477,115970.0,115960.0,0.64539271]
[1755926359981,1.62687438,115970.0,115960.0,0.64539271]
[1755926360488,0.82915438,115970.0,115960.0,0.64539271]
[1755926360688,1.62603438,115970.0,115960.0,0.64539271]
[1755926361686,1.62603438,115970.0,115960.0,0.61257271]
[1755926361985,1.62603438,115970.0,115960.0,0.64539271]
[1755926363892,1.21789477,115970.0,115960.0,0.64539271]
[1755926364094,1.62603438,115970.0,115960.0,0.64539271]
[1755926367794,1.21789477,115970.0,115960.0,0.64539271]
[1755926368093,1.62603438,115970.0,115960.0,0.64539271]
[1755926368293,1.62603438,115970.0,115960.0,0.73166821]
[1755926368594,1.62695438,115970.0,115960.0,1.22604073]
[1755926368892,1.62695438,115970.0,115960.0,0.81790112]
[1755926369093,1.62695438,115970.0,115960.0,1.22604073]
[1755926369285,1.62695438,115970.0,115960.0,0.81790112]
[1755926370094,1.62695438,115970.0,115960.0,0.92634576]
[1755926370595,1.62695438,115970.0,115960.0,0.84007026]
[1755926372397,1.62695438,115970.0,115960.0,0.73162562]
[1755926373291,1.62695438,115970.0,115960.0,0.84007026]
[1755926373693,1.62695438,115970.0,115960.0,0.73162562]
[1755926374199,1.62695438,115970.0,115960.0,0.81790092]
[1755926376400,1.62695438,115970.0,115960.0,0.80910537]
[1755926377102,1.62695438,115970.0,115960.0,0.89538087]
[1755926377506,1.21881477,115970.0,115960.0,0.89538087]
[1755926377994,1.62695438,115970.0,115960.0,0.81790112]
[1755926380604,1.62695438,115970.0,115960.0,0.73162562]
[1755926380803,1.62695438,115970.0,115960.0,0.80910797]
[1755926381803,1.62695438,115970.0,115960.0,0.77628797]
[1755926382192,1.62695438,115970.0,115960.0,0.70831797]
[1755926382393,1.62695438,115970.0,115960.0,0.63083562]
[1755926383508,1.62695438,115970.0,115960.0,0.54460271]
[1755926384403,1.21881477,115970.0,115960.0,0.54460271]
[1755926384597,1.62695438,115970.0,115960.0,0.54460271]
[1755926385003,1.62695438,115970.0,115960.0,0.56654271]
[1755926387513,1.62695438,115970.0,115960.0,0.57698271]
[1755926388512,1.62695438,115970.0,115960.0,0.54460271]
[1755926388907,1.62695438,115970.0,115960.0,0.52716]
[1755926389112,1.62695438,115970.0,115960.0,0.55954]
[1755926389511,1.62695438,115970.0,115960.0,0.59269]
[1755926389708,1.62695438,115970.0,115960.0,0.60969]
[1755926389907,1.62695438,115970.0,115960.0,0.62603]
[1755926390107,1.62695438,115970.0,115960.0,0.59288]
[1755926390309,1.62695438,115970.0,115960.0,0.5376]
[1755926390611,1.62695438,115970.0,115960.0,0.52716]
[1755926391005,1.62695438,115970.0,115960.0,0.6046426]
[1755926391611,1.62695438,115970.0,115960.0,0.50059573]
[1755926391612,2.28589399,115970.0,115960.0,0.50059573]
[1755926391815,2.28589399,115970.0,115960.0,0.480231]
[1755926392211,2.28589399,115970.0,115960.0,0.0774826]
[1755926392514,0.0862753,115960.0,115950.0,0.1042726]
[1755926392714,1.26335452,115960.0,115950.0,0.1042726]
[1755926395317,1.26335452,115960.0,115950.0,0.02679]
[1755926396213,0.4470753,115960.0,115950.0,0.02679]
[1755926396408,1.26335452,115960.0,115950.0,0.02679]
[1755926396808,0.1290928,115950.0,115940.0,0.0774826]
[1755926397012,1.69443241,115950.0,115940.0,0.0774826]
[1755926397314,1.69443241,115950.0,115940.0,0.5774826]
[1755926397514,1.69443241,115950.0,115940.0,0.5994226]
[1755926397712,1.69443241,115950.0,115940.0,0.6100526]
[1755926398816,1.69443241,115950.0,115940.0,0.1380726]
[1755926399221,1.69443241,115950.0,115940.0,0.1695826]
[1755926399516,1.69443241,115950.0,115940.0,0.10795]
[1755926402307,1.69443241,115950.0,115940.0,0.04996]
[1755926402511,1.2862928,115950.0,115940.0,0.06059]
[1755926402715,1.69443241,115950.0,115940.0,0.0921]
[1755926402919,1.69443241,115950.0,115940.0,0.10795]
[1755926403123,0.89803241,115950.0,115940.0,0.12525]
[1755926403421,1.69451241,115950.0,115940.0,0.12525]
[1755926409020,1.69451241,115950.0,115940.0,0.2027326]
[1755926412229,1.69455241,115950.0,115940.0,0.94711999]
[1755926412431,1.69455241,115950.0,115940.0,0.53898038]
[1755926413029,1.69455241,115950.0,115940.0,0.46149778]
[1755926415631,1.69455241,115950.0,115940.0,0.56994242]
[1755926416433,1.69455241,115950.0,115940.0,0.46149778]
[1755926418942,1.69455241,115950.0,115940.0,0.56994242]
[1755926420641,1.2864128,115950.0,115940.0,0.56994242]
[1755926420841,1.69455241,115950.0,115940.0,0.56994242]
[1755926421443,1.69455241,115950.0,115940.0,0.64743909]
[1755926421634,1.69455241,115950.0,115940.0,0.53899445]
[1755926425346,1.2864128,115950.0,115940.0,0.53899445]
[1755926425646,1.69455241,115950.0,115940.0,0.53899445]
[1755926426447,1.67028241,115950.0,115940.0,0.53899445]
[1755926427148,1.69369241,115950.0,115940.0,0.53899445]
[1755926430149,1.69369241,115950.0,115940.0,0.28899445]
[1755926431450,1.69369241,115950.0,115940.0,0.21149778]
[1755926432555,1.69369241,115950.0,115940.0,0.31994242]
[1755926435962,0.01854,115950.0,115940.0,1.06437243]
[1755926436151,0.81894,115950.0,115940.0,0.95592779]
[1755926436460,0.8187,115950.0,115940.0,1.1106096]
[1755926436649,0.8187,115950.0,115940.0,1.6106096]
[1755926436956,0.80016,115950.0,115940.0,1.7106096]
[1755926437256,0.80016,115950.0,115940.0,1.55592779]
[1755926438846,0.9229331,115960.0,115950.0,0.1367329]
[1755926439052,0.9229331,115960.0,115950.0,0.61757251]
[1755926439453,0.9229331,115960.0,115950.0,0.70382029]
[1755926439855,0.836653,115960.0,115950.0,0.70382029]
[1755926440054,0.836653,115960.0,115950.0,0.80382029]
[1755926440657,0.836653,115960.0,115950.0,1.30382029]
[1755926440855,0.9229285,115960.0,115950.0,1.30382029]
[1755926441857,0.836653,115960.0,115950.0,1.30382029]
[1755926443862,0.836653,115960.0,115950.0,0.89568068]
[1755926444051,0.9229284,115960.0,115950.0,0.89568068]
[1755926444255,0.9229284,115960.0,115950.0,1.30382029]
[1755926445261,0.9229284,115960.0,115950.0,1.41199864]
[1755926446566,0.836653,115960.0,115950.0,1.30382029]
[1755926447253,0.9229285,115960.0,115950.0,1.30382029]
[1755926449367,0.9229285,115960.0,115950.0,1.38111179]
[1755926450453,0.836653,115960.0,115950.0,1.38111179]
[1755926452765,0.9229285,115960.0,115950.0,1.38111179]
[1755926454065,0.9229285,115960.0,115950.0,1.48930092]
[1755926454266,0.9229285,115960.0,115950.0,1.41200942]
[1755926456563,0.9229285,115960.0,115950.0,1.30382029]
[1755926458167,0.836653,115960.0,115950.0,1.30382029]
[1755926458666,0.9229285,115960.0,115950.0,1.30382029]
[1755926460365,0.9229285,115960.0,115950.0,0.89568068]
[1755926460667,0.9229285,115960.0,115950.0,1.30382029]
[1755926460968,0.9229285,115960.0,115950.0,0.89568068]
[1755926461265,0.9453885,115960.0,115950.0,0.89568068]
[1755926461469,0.9453885,115960.0,115950.0,1.30382029]
[1755926461761,1.35432811,115960.0,115950.0,0.77696778]
[1755926461962,1.96512811,115960.0,115950.0,0.64488778]
[1755926462756,1.5569885,115960.0,115950.0,0.67828778]
[1755926462962,1.5569885,115960.0,115950.0,1.10271739]
[1755926463161,1.96432811,115960.0,115950.0,1.10271739]
[1755926463967,0.80304811,115960.0,115950.0,1.18900029]
[1755926464169,0.836133,115960.0,115950.0,1.18900029]
[1755926464467,0.836133,115960.0,115950.0,1.20696029]
[1755926464662,0.9224085,115960.0,115950.0,1.3616421]
[1755926465569,0.9224085,115960.0,115950.0,0.95350249]
[1755926465761,0.9224085,115960.0,115950.0,1.3616421]
[1755926466362,0.836133,115960.0,115950.0,1.3616421]
[1755926467061,0.836133,115960.0,115950.0,1.20696029]
[1755926467969,0.836133,115960.0,115950.0,0.79882068]
[1755926468166,0.836133,115960.0,115950.0,1.20696029]
[1755926468373,0.836133,115960.0,115950.0,1.31543581]
[1755926469970,0.836133,115960.0,115950.0,2.11547581]
[1755926470673,0.836133,115960.0,115950.0,2.08451324]
[1755926471074,0.836133,115960.0,115950.0,2.00700029]
[1755926471974,0.836133,115960.0,115950.0,1.20696029]
[1755926472280,0.81682,115960.0,115950.0,1.20696029]
[1755926475478,0.81682,115960.0,115950.0,0.79882068]
[1755926475673,0.81682,115960.0,115950.0,1.20696029]
[1755926476282,0.9255555,115960.0,115950.0,1.20696029]
[1755926477181,1.33369511,115960.0,115950.0,0.79882068]
[1755926477485,1.94449511,115960.0,115950.0,0.7566557]
[1755926477676,1.94449511,115960.0,115950.0,0.7900557]
[1755926477878,1.5363555,115960.0,115950.0,1.28447821]
[1755926478075,0.7363955,115960.0,115950.0,1.28447821]
[1755926478276,1.5367155,115960.0,115950.0,1.28447821]
[1755926480282,1.5367155,115960.0,115950.0,0.8763386]
[1755926480582,1.5367155,115960.0,115950.0,1.20696029]
[1755926480781,1.5367155,115960.0,115950.0,1.31543581]
[1755926484188,1.41112,115960.0,115950.0,1.31543581]
[1755926484389,1.41112,115960.0,115950.0,1.20696029]
[1755926484781,1.41112,115960.0,115950.0,1.3616421]
[1755926484983,1.4973955,115960.0,115950.0,1.3616421]
[1755926485690,1.4973955,115960.0,115950.0,0.95350249]
[1755926485890,1.4973955,115960.0,115950.0,1.3616421]
[1755926486994,1.4973955,115960.0,115950.0,0.95350249]
[1755926487192,1.4973955,115960.0,115950.0,1.3616421]
[1755926489892,1.2473955,115960.0,115950.0,1.3616421]
[1755926490200,1.2473955,115960.0,115950.0,1.43915429]
[1755926490387,1.2473955,115960.0,115950.0,1.28447248]
[1755926490592,1.65553511,115960.0,115950.0,1.28447248]
[1755926491986,1.2473955,115960.0,115950.0,1.28447248]
[1755926496506,1.2473955,115960.0,115950.0,1.20696029]
[1755926498807,1.2473955,115960.0,115950.0,0.79882068]
[1755926498997,1.2473955,115960.0,115950.0,1.20696029]
[1755926500906,0.8865955,115960.0,115950.0,1.20696029]
[1755926501702,0.8865955,115960.0,115950.0,1.3616421]
[1755926501998,1.2473955,115960.0,115950.0,1.3616421]
[1755926502400,0.8865955,115960.0,115950.0,1.3616421]
[1755926503505,0.80032,115960.0,115950.0,1.3616421]
[1755926503995,0.8865956,115960.0,115950.0,1.20696029]
[1755926507211,0.8865956,115960.0,115950.0,0.79882068]
[1755926507510,0.8865956,115960.0,115950.0,1.20696029]
[1755926508309,0.80032,115960.0,115950.0,1.20696029]
[1755926510812,0.80032,115960.0,115950.0,0.79882068]
[1755926511007,0.80032,115960.0,115950.0,1.20696029]
[1755926513915,0.80032,115960.0,115950.0,1.22586343]
[1755926514517,0.80032,115960.0,115950.0,1.38054524]
[1755926518512,0.85521111,115970.0,115960.0,0.2083358]
[1755926518513,0.3608,115970.0,115960.0,0.2083358]
[1755926518719,1.15808,115970.0,115960.0,0.61647541]
[1755926519223,1.15808,115970.0,115960.0,0.81122459]
[1755926520718,1.15808,115970.0,115960.0,1.31122459]
[1755926522026,1.15808,115970.0,115960.0,0.90308498]
[1755926522223,1.15808,115970.0,115960.0,1.31122459]
[1755926525124,1.15808,115970.0,115960.0,0.90308498]
[1755926525326,1.15808,115970.0,115960.0,1.31122459]
[1755926531131,1.15808,115970.0,115960.0,0.90308498]
[1755926531327,1.15808,115970.0,115960.0,1.31122459]
[1755926534729,1.2443482,115970.0,115960.0,1.31122459]
[1755926536233,1.15808,115970.0,115960.0,1.31122459]
[1755926536632,1.15808,115970.0,115960.0,0.90308498]
[1755926536836,1.15808,115970.0,115960.0,1.31122459]
[1755926537935,1.2443482,115970.0,115960.0,1.31122459]
[1755926539938,1.2443482,115970.0,115960.0,0.90308498]
[1755926540236,1.2443482,115970.0,115960.0,1.20271576]
[1755926541233,1.2443482,115970.0,115960.0,1.35739757]
[1755926542738,1.2443482,115970.0,115960.0,1.20271576]
[1755926543837,1.2443482,115970.0,115960.0,0.79457615]
[1755926544024,1.2443482,115970.0,115960.0,1.20271576]
[1755926545636,1.15808,115970.0,115960.0,0.79457615]
[1755926545836,1.15808,115970.0,115960.0,1.20271576]
[1755926546835,1.15808,115970.0,115960.0,1.31115045]
[1755926550239,1.15808,115970.0,115960.0,0.90301084]
[1755926550434,1.15808,115970.0,115960.0,1.31115045]
[1755926553633,1.15808,115970.0,115960.0,1.20271576]
[1755926553834,1.15808,115970.0,115960.0,0.79457615]
[1755926554135,1.15808,115970.0,115960.0,1.20271576]
[1755926554934,1.15808,115970.0,115960.0,1.35739757]
[1755926557342,1.15808,115970.0,115960.0,0.79457615]
[1755926557544,1.15808,115970.0,115960.0,1.20271576]
[1755926559347,1.15808,115970.0,115960.0,0.79457615]
[1755926559549,1.15808,115970.0,115960.0,1.20271576]
[1755926561448,1.2443488,115970.0,115960.0,1.20271576]
[1755926561847,1.2443488,115970.0,115960.0,0.79457615]
[1755926562039,1.2443488,115970.0,115960.0,1.20271576]
[1755926562242,1.2443488,115970.0,115960.0,1.35739757]
[1755926562545,1.90248841,115970.0,115960.0,1.30970757]
[1755926562948,1.90248841,115970.0,115960.0,1.20435576]
[1755926563544,1.4943488,115970.0,115960.0,0.79621615]
[1755926563740,1.4943488,115970.0,115960.0,1.35903757]
[1755926564552,1.4943488,115970.0,115960.0,1.20435576]
[1755926565350,1.4943488,115970.0,115960.0,1.35903757]
[1755926566154,1.4943488,115970.0,115960.0,0.95089796]
[1755926566357,1.4943488,115970.0,115960.0,1.35903757]
[1755926567552,1.4943488,115970.0,115960.0,0.95089796]
[1755926567849,1.4943488,115970.0,115960.0,1.35903757]
[1755926568369,1.4943488,115970.0,115960.0,0.95089796]
[1755926568567,1.4943488,115970.0,115960.0,1.35903757]
[1755926571365,1.40808,115970.0,115960.0,1.35903757]
[1755926571768,0.79728,115970.0,115960.0,1.76717718]
[1755926572063,1.20094995,115980.0,115970.0,0.22881215]
[1755926572272,1.20094995,115980.0,115970.0,0.74547725]
[1755926572665,1.20094995,115980.0,115970.0,0.72317723]
[1755926573070,1.20094995,115980.0,115970.0,1.22317723]
[1755926574471,0.40418995,115980.0,115970.0,1.22317723]
[1755926574672,1.20094995,115980.0,115970.0,1.22317723]
[1755926578175,1.20094995,115980.0,115970.0,1.33161239]
[1755926580979,0.04338995,115980.0,115970.0,2.01981723]
[1755926581171,1.17498946,115990.0,115980.0,0.1360814]
[1755926581378,1.17498946,115990.0,115980.0,0.69468198]
[1755926581877,1.17498946,115990.0,115980.0,0.78090745]
[1755926582267,1.17498946,115990.0,115980.0,0.70346648]
[1755926583983,1.26124346,115990.0,115980.0,0.70346648]
[1755926584276,1.28431285,115990.0,115980.0,0.70346648]
[1755926584472,1.26672339,115990.0,115980.0,0.70346648]
[1755926584874,0.47012339,115990.0,115980.0,0.70346648]
[1755926585075,1.26668339,115990.0,115980.0,0.70346648]
[1755926585874,1.26668339,115990.0,115980.0,0.81190164]
[1755926589572,1.26668339,115990.0,115980.0,0.70346648]
[1755926589871,1.26668339,115990.0,115980.0,0.78087148]
[1755926589872,0.38386939,115990.0,115980.0,0.78087148]
[1755926590077,0.3608,116010.0,116000.0,0.1360665]
[1755926590380,0.3608,116010.0,116000.0,1.02536572]
[1755926590676,0.3608,116010.0,116000.0,1.20342929]
[1755926591080,0.46966689,116010.0,116000.0,0.79528968]
[1755926591282,0.5170065,116010.0,116000.0,1.20342929]
[1755926591578,0.10886689,116010.0,116000.0,1.20342929]
[1755926591881,0.02262779,116010.0,116000.0,1.20342929]
[1755926592174,1.65161521,116020.0,116010.0,0.1360591]
[1755926592378,1.65161521,116020.0,116010.0,0.2090791]
[1755926592778,1.67440006,116020.0,116010.0,0.29527485]
[1755926593081,1.67440006,116020.0,116010.0,0.41352859]
[1755926593278,1.74224997,116020.0,116010.0,0.41352859]
[1755926593579,1.33411036,116020.0,116010.0,1.21352352]
[1755926593774,1.74224997,116020.0,116010.0,1.21352352]
[1755926594179,1.33411036,116020.0,116010.0,1.29072164]
[1755926594381,1.74224997,116020.0,116010.0,1.29072164]
[1755926595482,1.65601437,116020.0,116010.0,1.29072164]
[1755926595680,0.81922485,116020.0,116010.0,1.21352352]
[1755926595878,0.81922485,116020.0,116010.0,1.3216682]
[1755926596080,0.81906485,116020.0,116010.0,1.3216682]
[1755926596280,0.81906485,116020.0,116010.0,1.32166782]
[1755926596676,0.81906485,116020.0,116010.0,0.91352821]
[1755926597080,0.81906485,116020.0,116010.0,1.32166782]
[1755926599384,0.81906485,116020.0,116010.0,1.32166773]
[1755926599585,0.81906485,116020.0,116010.0,1.21352305]
[1755926599782,0.81906485,116020.0,116010.0,0.80538344]
[1755926599982,0.81906485,116020.0,116010.0,1.21352309]
[1755926601695,0.81906485,116020.0,116010.0,1.21452309]
[1755926602287,0.81906485,116020.0,116010.0,1.29164202]
[1755926608391,0.81906485,116020.0,116010.0,1.28153336]
[1755926608591,0.81906485,116020.0,116010.0,1.29164202]
[1755926613796,0.90529655,116020.0,116010.0,1.29164202]
[1755926614491,0.90529655,116020.0,116010.0,1.29164203]
[1755926615797,0.81906485,116020.0,116010.0,1.29164203]
[1755926618294,0.81906485,116020.0,116010.0,1.21452313]
[1755926620092,0.81906485,116020.0,116010.0,1.32266781]
[1755926620294,0.81906485,116020.0,116010.0,0.9145282]
[1755926620490,0.81906485,116020.0,116010.0,1.32266781]
[1755926621491,0.81906485,116020.0,116010.0,0.9145282]
[1755926621797,0.81906485,116020.0,116010.0,1.32266781]
[1755926622297,0.81906485,116020.0,116010.0,0.9145282]
[1755926622492,0.81906485,116020.0,116010.0,1.32266781]
[1755926623492,0.02278485,116020.0,116010.0,1.32266781]
[1755926623695,1.17362902,116030.0,116020.0,0.1350717]
[1755926623897,1.17362902,116030.0,116020.0,0.62623998]
[1755926624192,1.17362902,116030.0,116020.0,0.21810037]
[1755926624496,1.17362902,116030.0,116020.0,0.30429612]
[1755926624497,1.66799283,116030.0,116020.0,0.30429612]
[1755926624690,1.66799283,116030.0,116020.0,0.71243573]
[1755926624691,1.69087163,116030.0,116020.0,0.71243573]
[1755926624895,1.94087163,116030.0,116020.0,0.27089612]
[1755926625101,1.94087163,116030.0,116020.0,0.77089612]
[1755926625291,1.94087163,116030.0,116020.0,0.80429612]
[1755926626301,1.94087163,116030.0,116020.0,1.21243573]
[1755926626503,1.94087163,116030.0,116020.0,1.20232706]
[1755926626698,1.94087163,116030.0,116020.0,0.53487824]
[1755926626699,2.00992264,116030.0,116020.0,0.53487824]
[1755926627195,2.00992264,116030.0,116020.0,0.64339183]
[1755926627402,2.00992264,116030.0,116020.0,0.22096124]
[1755926627700,2.00992264,116030.0,116020.0,0.11244765]
[1755926629306,2.00992264,116030.0,116020.0,0.01010824]
[1755926629606,0.0862316,116020.0,116010.0,0.186083]
[1755926629803,0.85597121,116020.0,116010.0,0.1961931]
[1755926630000,0.85597121,116020.0,116010.0,0.08767951]
[1755926630392,0.85597121,116020.0,116010.0,0.0101101]
[1755926630596,1.10597121,116020.0,116010.0,0.0101101]
[1755926630803,0.0862391,116010.0,116000.0,0.07756941]
[1755926630998,0.0862465,116000.0,115990.0,0.2245804]
[1755926631300,0.85518611,116000.0,115990.0,0.2245804]
[1755926631502,0.85518611,116000.0,115990.0,0.2493504]
[1755926631894,0.4470465,116000.0,115990.0,0.2493504]
[1755926632098,0.85518611,116000.0,115990.0,0.2493504]
[1755926632306,0.85518611,116000.0,115990.0,0.7513504]
[1755926633004,0.85518611,116000.0,115990.0,0.7543504]
[1755926634301,0.4470465,116000.0,115990.0,0.83180491]
[1755926634502,0.4470465,116000.0,115990.0,0.72329132]
[1755926635912,0.4470465,116000.0,115990.0,0.64583681]
[1755926636301,1.2427665,116000.0,115990.0,0.72326198]
[1755926638205,1.2427665,116000.0,115990.0,0.80951588]
[1755926639012,1.2427665,116000.0,115990.0,0.72326198]
[1755926641008,1.2427665,116000.0,115990.0,0.64583681]
[1755926642508,1.2427665,116000.0,115990.0,0.61243681]
[1755926642705,1.87801911,116000.0,115990.0,0.60715754]
[1755926642903,1.89577445,116000.0,115990.0,0.53988129]
[1755926643607,1.89577445,116000.0,115990.0,0.03988129]
[1755926643913,1.89577445,116000.0,115990.0,0.03988189]
[1755926644410,1.51052184,116000.0,115990.0,0.06169189]
[1755926644603,1.26052184,116000.0,115990.0,0.13630189]
[1755926645006,1.64577445,116000.0,115990.0,0.13630189]
[1755926645513,1.26052184,116000.0,115990.0,0.13630189]
[1755926645709,1.26052184,116000.0,115990.0,0.13330189]
[1755926646016,1.26052184,116000.0,115990.0,0.13530189]
[1755926646416,0.46480184,116000.0,115990.0,0.13630189]